bitfinex-derivatives/quotes_BTCF0:USTF0_20250127
["timestamp","ask_amount","ask_price","bid_price","bid_amount"]
[1737965259560,0.04042,98951.0,98920.0,0.37474344]
[1737965259561,0.57804368,98945.0,98940.0,0.18737172]
[1737965259762,0.57804368,98945.0,98942.0,0.202227]
[1737965260268,0.57804368,98943.0,98935.0,0.001]
[1737965260460,0.3608,98948.0,98935.0,0.001]
[1737965260461,0.57804368,98936.0,98935.0,0.001]
[1737965261066,0.85743083,98936.0,98935.0,0.001]
[1737965261463,1.21823083,98936.0,98935.0,0.001]
[1737965261660,1.21823083,98936.0,98934.0,0.00015155]
[1737965261858,0.57804368,98935.0,98934.0,0.00015155]
[1737965262057,0.57804368,98935.0,98923.0,0.01305035]
[1737965262354,0.57804368,98920.0,98917.0,0.563078]
[1737965262554,0.57804368,98926.0,98917.0,0.3608]
[1737965262864,0.57804368,98926.0,98917.0,0.37393752]
[1737965263062,0.3628,98936.0,98917.0,0.37393752]
[1737965263063,0.57804368,98920.0,98917.0,0.37393752]
[1737965263268,0.3628,98936.0,98917.0,0.37393752]
[1737965263471,0.57804368,98919.0,98917.0,0.37393752]
[1737965263667,0.57804368,98918.0,98917.0,0.37793752]
[1737965264665,0.57804368,98918.0,98917.0,0.37893752]
[1737965264870,0.57804368,98918.0,98917.0,0.01813752]
[1737965265271,0.57804368,98918.0,98917.0,0.01413752]
[1737965265477,0.57804368,98918.0,98917.0,0.01813752]
[1737965266774,0.12066731,98919.0,98917.0,0.22041652]
[1737965267467,0.14593731,98919.0,98917.0,0.22041652]
[1737965267873,0.14593731,98919.0,98917.0,0.21941652]
[1737965268088,0.57804368,98918.0,98917.0,0.01813752]
[1737965268375,0.14593731,98919.0,98917.0,0.22041752]
[1737965268574,0.14593731,98919.0,98917.0,0.22141752]
[1737965268776,0.00015164,98931.0,98918.0,0.1431]
[1737965268977,0.00015164,98931.0,98930.0,0.202253]
[1737965271584,0.00015164,98931.0,98930.0,0.204253]
[1737965271775,0.3608,98946.0,98940.0,0.202231]
[1737965271973,0.18100097,98949.0,98938.0,0.3608]
[1737965272175,0.18100097,98949.0,98948.0,0.563017]
[1737965272491,0.3608,98998.0,98970.0,0.202172]
[1737965272778,0.01385134,98971.0,98970.0,0.60355647]
[1737965272977,0.3608,99004.0,98970.0,0.60355647]
[1737965272978,0.00015156,98980.0,98976.0,0.181979]
[1737965273586,0.00015156,98980.0,98976.0,0.22256347]
[1737965274187,0.2385205,98977.0,98976.0,0.22256347]
[1737965274376,0.2185705,98977.0,98976.0,0.181979]
[1737965274587,0.2185705,98977.0,98970.0,0.37384036]
[1737965274588,0.21156986,98979.0,98975.0,0.3608]
[1737965274884,0.21156986,98979.0,98977.0,0.202157]
[1737965276585,0.21156986,98979.0,98977.0,0.203157]
[1737965276987,0.21103004,98979.0,98977.0,0.203157]
[1737965277320,0.21103004,98979.0,98977.0,0.204157]
[1737965277892,0.57804368,98978.0,98977.0,0.002]
[1737965278488,0.85743083,98978.0,98977.0,0.002]
[1737965279490,0.8417108,98978.0,98977.0,0.002]
[1737965279889,0.001,98978.0,98977.0,0.006]
[1737965280087,0.37405189,98994.0,98978.0,0.202155]
[1737965280390,0.56232365,98990.0,98985.0,0.3608]
[1737965280594,0.56232365,98992.0,98985.0,0.3608]
[1737965280894,0.3608,99024.0,99007.0,0.202095]
[1737965281194,0.56232365,99008.0,98997.0,0.33009804]
[1737965281386,0.56232365,99002.0,99001.0,0.00015156]
[1737965282192,0.00351634,99014.0,99001.0,0.00015156]
[1737965282397,0.56232365,99012.0,99004.0,0.33009804]
[1737965282587,0.56232365,99010.0,99004.0,0.33009804]
[1737965282781,0.56232365,99005.0,99001.0,0.0134083]
[1737965283083,0.56232365,99002.0,99001.0,0.0154083]
[1737965283486,0.8417108,99002.0,99001.0,0.00215156]
[1737965284296,0.8417108,99002.0,98974.0,0.3608]
[1737965284486,0.1563,99013.0,98990.0,0.33009804]
[1737965284487,0.56232365,98992.0,98990.0,0.33009804]
[1737965284691,0.56232365,98993.0,98991.0,0.202129]
[1737965284887,0.56232365,99001.0,98996.0,0.202117]
[1737965285282,0.001,99012.0,98999.0,0.202111]
[1737965285492,0.56232365,99001.0,99000.0,0.18705247]
[1737965285791,0.56232365,99001.0,98995.0,0.3608]
[1737965285792,0.00015156,99008.0,98995.0,0.3608]
[1737965285998,0.56232365,98998.0,98995.0,0.37410557]
[1737965286197,0.56232365,98996.0,98995.0,0.37410557]
[1737965286989,0.003,99002.0,99001.0,0.202108]
[1737965287996,0.00015156,99008.0,99004.0,0.202102]
[1737965288303,0.56232365,99007.0,99004.0,0.562902]
[1737965288993,0.02540156,99008.0,99004.0,0.562902]
[1737965288994,0.02540156,99008.0,99006.0,0.202098]
[1737965291092,0.02540156,99008.0,99006.0,0.21865147]
[1737965291885,0.3608,99048.0,99027.0,0.18705247]
[1737965292096,0.8153,99040.0,99027.0,0.18705247]
[1737965292284,0.56232365,99028.0,99027.0,0.18705247]
[1737965292488,0.56232365,99028.0,99018.0,0.18705247]
[1737965292695,0.56232365,99026.0,99018.0,0.18705247]
[1737965292997,0.56232365,99020.0,99018.0,0.18705247]
[1737965293201,0.3608,99030.0,99004.0,0.38153513]
[1737965293202,0.56232365,99019.0,99013.0,0.00015148]
[1737965293494,0.3608,99020.0,99013.0,0.00015148]
[1737965293701,0.56232365,99014.0,99013.0,0.00015148]
[1737965293998,0.56232365,99014.0,99004.0,0.3608]
[1737965294195,0.56232365,99005.0,99004.0,0.3608]
[1737965294494,0.82317664,99005.0,99004.0,0.38148565]
[1737965295396,0.82317664,99005.0,99004.0,0.3608]
[1737965295693,0.82417664,99005.0,99004.0,0.3608]
[1737965296087,0.82317664,99005.0,99004.0,0.3608]
[1737965296295,0.82417664,99005.0,99004.0,0.3658]
[1737965297296,0.001,99005.0,99004.0,0.3658]
[1737965297490,0.8153,99040.0,99011.0,0.202087]
[1737965297690,0.54378949,99011.0,99010.0,0.18705247]
[1737965297896,0.54378949,99011.0,99004.0,0.3658]
[1737965298200,0.54378949,99011.0,99009.0,0.202092]
[1737965298400,0.54378949,99011.0,99005.0,0.04161824]
[1737965298594,0.54378949,99007.0,99004.0,0.3658]
[1737965298797,0.54378949,99007.0,99005.0,0.202098]
[1737965299093,0.3608,99030.0,99013.0,0.202083]
[1737965299294,0.54378949,99014.0,99013.0,0.202083]
[1737965299795,0.82317664,99014.0,99010.0,0.18705247]
[1737965299998,0.54378949,99011.0,99010.0,0.18705247]
[1737965300198,0.54378949,99011.0,99005.0,0.003]
[1737965300508,0.54378949,99006.0,99005.0,0.003]
[1737965300896,0.82317664,99006.0,99005.0,0.003]
[1737965301206,0.82317664,99006.0,98980.0,0.18705247]
[1737965301404,0.90458949,98996.0,98980.0,0.18705247]
[1737965301700,0.90458949,98996.0,98991.0,0.01899742]
[1737965301701,0.54378949,98992.0,98991.0,0.01899742]
[1737965301902,0.14431786,98972.0,98969.0,0.04141124]
[1737965302202,0.14431786,98972.0,98940.0,0.3608]
[1737965302203,0.7216,98970.0,98953.0,0.12697823]
[1737965302391,0.3608,98954.0,98953.0,0.12697823]
[1737965302597,0.7216,98954.0,98953.0,0.12697823]
[1737965302793,0.7216,98954.0,98933.0,0.51723248]
[1737965302997,0.7216,98954.0,98938.0,0.202236]
[1737965302998,0.3608,98946.0,98938.0,0.202236]
[1737965303399,0.3608,98946.0,98943.0,0.02062024]
[1737965303906,0.3608,98955.0,98943.0,0.02062024]
[1737965304310,0.3608,98946.0,98933.0,0.31498748]
[1737965304507,0.563045,98934.0,98919.0,0.60076265]
[1737965304703,0.20226,98927.0,98919.0,0.60076265]
[1737965304899,0.3608,98920.0,98900.0,0.1]
[1737965305106,0.3608,98908.0,98900.0,0.1]
[1737965305610,0.3608,98908.0,98907.0,0.00151613]
[1737965307699,0.3608,98920.0,98907.0,0.00151613]
[1737965308015,0.3608,98910.0,98907.0,0.00151613]
[1737965308201,0.3608,98910.0,98907.0,0.00251613]
[1737965309409,0.09025024,98916.0,98907.0,0.00251613]
[1737965309909,0.002,98910.0,98908.0,0.202298]
[1737965310506,0.002,98910.0,98909.0,0.3608]
[1737965311416,0.00015156,98933.0,98909.0,0.3608]
[1737965311616,0.00015156,98933.0,98930.0,0.3608]
[1737965311913,0.00015156,98933.0,98930.0,0.202252]
[1737965312219,0.09025024,98938.0,98931.0,0.1471]
[1737965313112,0.3608,98952.0,98933.0,0.202247]
[1737965313313,0.00015165,98944.0,98940.0,0.00501409]
[1737965314110,0.36095165,98944.0,98931.0,0.1673221]
[1737965314314,0.35057392,98944.0,98931.0,0.0202221]
[1737965314510,0.3608,98933.0,98925.0,0.00015165]
[1737965315012,0.3608,98933.0,98925.0,0.02056402]
[1737965315217,0.3608,98933.0,98925.0,0.00015165]
[1737965315962,0.38606,98933.0,98925.0,0.00115165]
[1737965316306,0.3608,98931.0,98925.0,0.00115165]
[1737965318112,0.3608,98931.0,98907.0,0.00151613]
[1737965318113,0.6608,98931.0,98907.0,0.00151613]
[1737965318312,0.3608,98908.0,98907.0,0.00151613]
[1737965318513,0.35264358,98908.0,98907.0,0.00151613]
[1737965319612,0.36095165,98917.0,98907.0,0.00151613]
[1737965319922,0.3608,98908.0,98907.0,0.00151613]
[1737965320125,0.3628,98908.0,98907.0,0.00151613]
[1737965320915,0.3628,98908.0,98907.0,0.00251613]
[1737965321714,0.3638,98908.0,98907.0,0.00151613]
[1737965322117,0.3638,98908.0,98900.0,0.1]
[1737965322314,0.3608,98907.0,98900.0,0.1]
[1737965322631,0.3608,98907.0,98881.0,0.202353]
[1737965322817,0.3608,98890.0,98881.0,0.202353]
[1737965323019,0.3608,98890.0,98881.0,0.22303044]
[1737965323213,0.3608,98890.0,98888.0,0.202337]
[1737965323526,0.002,98908.0,98901.0,0.202313]
[1737965323718,0.3608,98909.0,98901.0,0.202313]
[1737965323915,0.3608,98909.0,98900.0,0.002]
[1737965324221,0.3608,98909.0,98900.0,0.001]
[1737965324425,0.3608,98901.0,98900.0,0.001]
[1737965325616,0.3608,98901.0,98890.0,0.18705247]
[1737965325816,0.3608,98901.0,98891.0,0.202332]
[1737965326222,0.3608,98901.0,98900.0,0.003]
[1737965326824,0.3608,98901.0,98890.0,0.19005247]
[1737965327021,0.3608,98901.0,98890.0,0.39238747]
[1737965327326,0.3608,98901.0,98890.0,0.19005247]
[1737965327624,0.3608,98901.0,98893.0,0.202328]
[1737965328025,0.3608,98901.0,98890.0,0.19005247]
[1737965328620,0.3608,98901.0,98900.0,0.003]
[1737965329627,0.3608,98901.0,98890.0,0.18705247]
[1737965329827,0.3608,98901.0,98890.0,0.19005247]
[1737965330126,0.3608,98893.0,98890.0,0.19005247]
[1737965330314,0.3608,98901.0,98890.0,0.18705247]
[1737965330520,0.3608,98901.0,98900.0,0.003]
[1737965331128,0.48106873,98901.0,98900.0,0.003]
[1737965332022,0.48106873,98901.0,98900.0,0.36620645]
[1737965332232,0.15054104,98908.0,98901.0,0.202313]
[1737965332429,0.15054104,98908.0,98900.0,0.6895]
[1737965332729,0.15054104,98908.0,98900.0,0.6889]
[1737965332930,0.15054104,98908.0,98900.0,0.6919]
[1737965333427,0.15054104,98902.0,98900.0,0.34301282]
[1737965333630,0.15054104,98902.0,98900.0,0.34401282]
[1737965334730,0.17989256,98905.0,98900.0,0.34401282]
[1737965335123,0.17989256,98905.0,98903.0,0.202308]
[1737965335619,0.17989256,98905.0,98900.0,0.34401282]
[1737965336528,0.00015165,98914.0,98900.0,0.34401282]
[1737965336529,0.15097768,98904.0,98900.0,0.34401282]
[1737965336832,0.15097768,98904.0,98900.0,0.34301282]
[1737965337131,0.15097768,98904.0,98900.0,0.34601282]
[1737965337626,0.15097768,98904.0,98900.0,0.34501282]
[1737965337817,0.15097768,98904.0,98903.0,0.202309]
[1737965340032,0.15097768,98904.0,98903.0,0.002]
[1737965341627,0.3608,98927.0,98903.0,0.002]
[1737965341628,0.24897447,98938.0,98924.0,0.176996]
[1737965341826,0.02165494,98926.0,98924.0,0.898596]
[1737965342033,0.10446421,98938.0,98937.0,0.202239]
[1737965342229,0.61663173,98957.0,98937.0,0.3608]
[1737965342531,0.28350931,98960.0,98947.0,0.18705247]
[1737965343024,0.00015165,98957.0,98947.0,0.18705247]
[1737965343424,0.2651268,98960.0,98947.0,0.18705247]
[1737965343726,0.2651268,98960.0,98948.0,0.202215]
[1737965343931,0.2661268,98960.0,98948.0,0.202215]
[1737965344530,0.2651268,98960.0,98948.0,0.202215]
[1737965344721,0.2651268,98960.0,98947.0,0.2084166]
[1737965345028,0.26458761,98960.0,98958.0,0.202196]
[1737965345229,0.26960484,98963.0,98962.0,0.202188]
[1737965345434,0.02109638,98992.0,98959.0,0.3608]
[1737965345732,0.02109638,98992.0,98957.0,0.3509]
[1737965345733,0.3608,98994.0,98986.0,0.202139]
[1737965345930,0.0204319,99007.0,98980.0,0.3608]
[1737965346124,0.3608,98994.0,98970.0,0.18705247]
[1737965346519,0.00015155,98992.0,98972.0,0.00015155]
[1737965346724,0.3608,98982.0,98972.0,0.00015155]
[1737965346932,0.1794,98981.0,98972.0,0.00015155]
[1737965347734,0.3608,98978.0,98972.0,0.00015155]
[1737965347936,0.1794,98981.0,98972.0,0.00015155]
[1737965348231,0.3608,98986.0,98972.0,0.00015155]
[1737965348531,0.3608,98986.0,98976.0,0.202159]
[1737965348737,0.3608,98986.0,98977.0,0.202156]
[1737965348937,0.3608,98986.0,98972.0,0.00015155]
[1737965349124,0.3608,98978.0,98972.0,0.00015155]
[1737965349734,0.1709,98977.0,98972.0,0.00215155]
[1737965350127,0.3608,98975.0,98952.0,0.202208]
[1737965350439,0.3608,98960.0,98949.0,0.17952091]
[1737965350623,0.3608,98965.0,98957.0,0.202197]
[1737965350624,0.1812,98959.0,98957.0,0.202197]
[1737965352021,0.00015155,98968.0,98966.0,0.202178]
[1737965353033,0.00015155,98968.0,98952.0,0.3807704]
[1737965353328,0.00015155,98968.0,98966.0,0.001]
[1737965353522,0.202182,98965.0,98949.0,0.17952091]
[1737965353822,0.3608,98951.0,98949.0,0.17952091]
[1737965354037,0.3608,98951.0,98948.0,0.00015155]
[1737965355638,0.3608,98951.0,98949.0,0.202213]
[1737965355936,0.3608,98951.0,98948.0,0.00115155]
[1737965355937,0.3608,98960.0,98959.0,0.202194]
[1737965356136,0.004,98965.0,98964.0,0.202184]
[1737965356522,0.004,98965.0,98948.0,0.05170555]
[1737965356523,0.00015155,98968.0,98959.0,0.0180907]
[1737965356726,0.00015155,98968.0,98948.0,0.36195155]
[1737965356727,0.00015155,98968.0,98967.0,0.202178]
[1737965358031,0.00515155,98968.0,98967.0,0.202178]
[1737965358526,0.00515155,98968.0,98967.0,0.2208151]
[1737965359331,0.0902885,98985.0,98967.0,0.0186371]
[1737965359531,0.3608,98984.0,98974.0,0.3608]
[1737965360134,0.0902885,98985.0,98950.0,0.173]
[1737965360135,0.3608,98975.0,98960.0,0.202192]
[1737965360331,0.3608,98975.0,98955.0,0.01858895]
[1737965360533,0.3608,98975.0,98963.0,0.3608]
[1737965360534,0.38605,98975.0,98963.0,0.3608]
[1737965360832,0.38605,98975.0,98960.0,0.3608]
[1737965361036,0.38605,98975.0,98967.0,0.001]
[1737965361336,0.36751585,98975.0,98967.0,0.001]
[1737965361528,0.39025483,98975.0,98967.0,0.001]
[1737965362334,0.39025483,98975.0,98958.0,0.00015155]
[1737965362534,0.3608,98965.0,98958.0,0.00015155]
[1737965363539,0.38625483,98975.0,98959.0,0.202194]
[1737965363741,0.36751585,98975.0,98958.0,0.00015155]
[1737965363934,0.02525,98975.0,98958.0,0.00415155]
[1737965364127,0.02525,98975.0,98974.0,0.202164]
[1737965364740,0.02525,98975.0,98965.0,0.202181]
[1737965365131,0.02525,98975.0,98964.0,0.3608]
[1737965365332,0.02525,98975.0,98970.0,0.20217]
[1737965365932,0.02525,98975.0,98974.0,0.202164]
[1737965366139,0.02525,98975.0,98974.0,0.562964]
[1737965366933,0.02525,98975.0,98970.0,0.001]
[1737965367252,0.02525,98975.0,98964.0,0.3608]
[1737965367544,0.02525,98975.0,98974.0,0.001]
[1737965367842,0.02525,98975.0,98974.0,0.002]
[1737965368135,0.02525,98975.0,98974.0,0.001]
[1737965368439,0.02625,98975.0,98974.0,0.006]
[1737965369033,0.68705,98975.0,98958.0,0.00015155]
[1737965369241,0.68705,98975.0,98936.0,0.3608]
[1737965369242,0.3608,98959.0,98936.0,0.3608]
[1737965369433,0.3608,98950.0,98936.0,0.37935804]
[1737965370033,0.3608,98950.0,98946.0,0.3000336]
[1737965370940,0.3608,98950.0,98946.0,0.0235336]
[1737965371138,0.3638,98950.0,98946.0,0.0235336]
[1737965371341,0.3638,98950.0,98946.0,0.0245336]
[1737965371543,0.202221,98946.0,98938.0,0.36019188]
[1737965371738,0.3608,98939.0,98922.0,0.202269]
[1737965371938,0.3608,98939.0,98904.0,0.28490857]
[1737965371939,0.3608,98925.0,98913.0,0.202287]
[1737965372139,0.3608,98925.0,98907.0,0.01843395]
[1737965372445,0.3608,98925.0,98915.0,0.202284]
[1737965374252,0.3608,98925.0,98910.0,0.00015163]
[1737965374253,0.00015163,98930.0,98912.0,0.202288]
[1737965374436,0.00015163,98930.0,98919.0,0.202274]
[1737965374752,0.01846147,98930.0,98911.0,0.2405546]
[1737965374948,0.00015163,98930.0,98911.0,0.2405546]
[1737965375448,0.00015163,98930.0,98928.0,0.202257]
[1737965376148,0.00015163,98930.0,98919.0,0.3608]
[1737965376446,0.00015163,98930.0,98918.0,0.202277]
[1737965376649,0.00015163,98930.0,98912.0,0.002]
[1737965377140,0.00115163,98930.0,98911.0,0.2405546]
[1737965377743,0.00115163,98930.0,98910.0,0.00015163]
[1737965377744,0.00015163,98930.0,98912.0,0.002]
[1737965378046,0.00115163,98930.0,98912.0,0.002]
[1737965378446,0.00215163,98930.0,98911.0,0.002]
[1737965378643,0.00115163,98930.0,98911.0,0.002]
[1737965379238,0.00115163,98930.0,98919.0,0.202275]
[1737965379440,0.00115163,98930.0,98916.0,0.3608]
[1737965379736,0.00115163,98930.0,98924.0,0.202265]
[1737965380149,0.00015163,98930.0,98924.0,0.202265]
[1737965380336,0.00015163,98930.0,98925.0,0.3608]
[1737965380644,0.00015163,98930.0,98928.0,0.202257]
[1737965381038,0.00015163,98930.0,98917.0,0.3525]
[1737965381439,0.00015163,98930.0,98917.0,0.37117874]
[1737965381841,0.00115163,98930.0,98920.0,0.3608]
[1737965382045,0.00115163,98930.0,98920.0,0.202272]
[1737965382235,0.00115163,98930.0,98918.0,0.3608]
[1737965382437,0.00115163,98930.0,98927.0,0.202259]
[1737965382647,0.00015163,98930.0,98927.0,0.202259]
[1737965383347,0.00015163,98930.0,98928.0,0.202256]
[1737965384344,0.0902885,98946.0,98928.0,0.202256]
[1737965384544,0.3608,98973.0,98945.0,0.202222]
[1737965384545,0.0902885,98955.0,98945.0,0.202222]
[1737965384744,0.0902885,98955.0,98937.0,0.3608]
[1737965385048,0.0902885,98955.0,98948.0,0.202215]
[1737965385249,0.0902885,98955.0,98937.0,0.3608]
[1737965385944,0.0902885,98955.0,98947.0,0.202219]
[1737965386145,0.0902885,98955.0,98937.0,0.3608]
[1737965386146,0.0912885,98955.0,98953.0,0.202205]
[1737965386535,0.1165485,98955.0,98953.0,0.202205]
[1737965386935,0.1175485,98955.0,98954.0,0.3608]
[1737965387946,0.02726,98955.0,98954.0,0.3608]
[1737965388146,0.02726,98955.0,98945.0,0.202742]
[1737965388343,0.02726,98955.0,98945.0,0.202222]
[1737965388544,0.02726,98955.0,98938.0,0.202236]
[1737965389244,0.02726,98955.0,98937.0,0.37905133]
[1737965389245,0.02726,98955.0,98947.0,0.202218]
[1737965389950,0.02726,98955.0,98937.0,0.37905133]
[1737965390639,0.02626,98955.0,98937.0,0.37905133]
[1737965390841,0.02726,98955.0,98944.0,0.202223]
[1737965391249,0.02626,98955.0,98944.0,0.202223]
[1737965391548,0.02626,98955.0,98947.0,0.202217]
[1737965391846,0.02726,98955.0,98947.0,0.3608]
[1737965393146,0.02726,98955.0,98953.0,0.202205]
[1737965395050,0.02726,98955.0,98947.0,0.37940792]
[1737965395444,0.02726,98955.0,98951.0,0.202211]
[1737965395849,0.02726,98955.0,98937.0,0.3608]
[1737965395850,0.02726,98955.0,98940.0,0.3608]
[1737965396543,0.02726,98955.0,98940.0,0.563032]
[1737965397242,0.02626,98955.0,98940.0,0.563032]
[1737965397437,0.02726,98955.0,98940.0,0.3608]
[1737965397843,0.3608,98951.0,98940.0,0.3608]
[1737965400644,0.3608,98951.0,98940.0,0.3618]
[1737965401842,0.3608,98943.0,98940.0,0.001]
[1737965402145,0.3608,98943.0,98936.0,0.00015163]
[1737965402345,0.3608,98943.0,98909.0,0.3608]
[1737965402346,0.3608,98941.0,98909.0,0.3608]
[1737965402546,0.3608,98917.0,98909.0,0.3608]
[1737965402958,0.3608,98917.0,98891.0,0.3452]
[1737965402959,0.56308,98917.0,98898.0,0.01836046]
[1737965403251,0.56308,98917.0,98890.0,0.48057377]
[1737965403252,0.3608,98913.0,98890.0,0.00052]
[1737965403446,0.7216,98897.0,98876.0,0.48057377]
[1737965403645,0.18750715,98886.0,98876.0,0.48005377]
[1737965404442,0.3608,98878.0,98876.0,0.48005377]
[1737965405051,0.3608,98878.0,98876.0,0.48205377]
[1737965405451,0.00015163,98891.0,98876.0,0.48205377]
[1737965405748,0.00015163,98891.0,98890.0,0.202335]
[1737965405956,0.3608,98925.0,98888.0,0.3608]
[1737965406150,0.1685,98929.0,98914.0,0.202286]
[1737965406343,0.3608,98934.0,98919.0,0.18750715]
[1737965406852,0.3608,98934.0,98920.0,0.202272]
[1737965407158,0.3608,98934.0,98907.0,0.3608]
[1737965407159,0.3608,98923.0,98917.0,0.00015163]
[1737965408551,0.3628,98923.0,98917.0,0.00015163]
[1737965408746,0.3638,98923.0,98917.0,0.00015163]
[1737965410459,0.3618,98923.0,98917.0,0.00015163]
[1737965410653,0.3618,98923.0,98917.0,0.00115163]
[1737965411250,0.3618,98923.0,98917.0,0.00215163]
[1737965411847,0.3608,98923.0,98917.0,0.00215163]
[1737965412146,0.7216,98923.0,98917.0,0.00215163]
[1737965412456,0.7216,98923.0,98884.0,0.3608]
[1737965412457,0.1668,98922.0,98884.0,0.563147]
[1737965412757,0.3608,98893.0,98892.0,0.202331]
[1737965413159,0.3608,98905.0,98892.0,0.202331]
[1737965413360,0.18750715,98920.0,98892.0,0.3608]
[1737965413561,0.00015163,98908.0,98905.0,0.202303]
[1737965413752,0.00015163,98908.0,98897.0,0.202319]
[1737965414054,0.00015163,98908.0,98892.0,0.3608]
[1737965414260,0.00015163,98908.0,98902.0,0.202309]
[1737965414451,0.00015163,98908.0,98892.0,0.3608]
[1737965414651,0.00015163,98908.0,98904.0,0.202305]
[1737965414956,0.00115163,98908.0,98904.0,0.202305]
[1737965415657,0.00015163,98908.0,98900.0,0.3608]
[1737965415860,0.00015163,98908.0,98907.0,0.2023]
[1737965416158,0.36095163,98908.0,98893.0,0.1722]
[1737965416351,0.36095163,98908.0,98892.0,0.3608]
[1737965416761,0.36095163,98908.0,98895.0,0.202325]
[1737965416955,0.36095163,98908.0,98880.0,0.36136]
[1737965416956,0.3608,98896.0,98880.0,0.36136]
[1737965417153,0.3608,98896.0,98869.0,0.1789]
[1737965417360,0.3608,98895.0,98869.0,0.1789]
[1737965417657,0.5297,98895.0,98870.0,0.3608]
[1737965417856,0.3359,98907.0,98870.0,0.54830715]
[1737965418060,0.3359,98907.0,98890.0,0.202334]
[1737965418253,0.3359,98907.0,98881.0,0.3608]
[1737965418457,0.00015163,98908.0,98906.0,0.202301]
[1737965419056,0.00015163,98908.0,98891.0,0.1789]
[1737965419263,0.003,98907.0,98897.0,0.202321]
[1737965419664,0.003,98907.0,98889.0,0.56328863]
[1737965419665,0.3608,98906.0,98889.0,0.56328863]
[1737965419861,0.3608,98906.0,98895.0,0.202325]
[1737965420058,0.3608,98906.0,98889.0,0.37744092]
[1737965420261,0.003,98907.0,98901.0,0.202312]
[1737965420562,0.003,98907.0,98902.0,0.202309]
[1737965420768,0.002,98907.0,98902.0,0.202309]
[1737965421069,0.00015163,98908.0,98902.0,0.202309]
[1737965421259,0.00015163,98908.0,98893.0,0.202328]
[1737965421654,0.00015163,98908.0,98889.0,0.37744092]
[1737965421957,0.18750715,98900.0,98889.0,0.37744092]
[1737965422154,0.3608,98894.0,98889.0,0.00015163]
[1737965422464,0.3608,98894.0,98863.0,0.3608]
[1737965422465,0.3608,98894.0,98864.0,0.01802985]
[1737965422652,0.18750715,98880.0,98864.0,0.00151696]
[1737965423261,0.18750715,98880.0,98866.0,0.202383]
[1737965423867,0.18750715,98880.0,98864.0,0.00151696]
[1737965424057,0.3608,98870.0,98864.0,0.00151696]
[1737965424257,0.3608,98870.0,98856.0,0.3608]
[1737965424454,0.3608,98861.0,98850.0,0.3608]
[1737965426168,0.001,98861.0,98850.0,0.3608]
[1737965426469,0.001,98861.0,98854.0,0.202407]
[1737965426669,0.001,98861.0,98850.0,0.3608]
[1737965427064,0.001,98861.0,98858.0,0.3608]
[1737965427289,0.001,98861.0,98859.0,0.202397]
[1737965427571,0.001,98861.0,98858.0,0.3608]
[1737965429269,0.001,98861.0,98859.0,0.202399]
[1737965430072,0.01687538,98883.0,98860.0,0.5048]
[1737965430362,0.01687538,98883.0,98864.0,0.202388]
[1737965431068,0.01687538,98883.0,98868.0,0.3608]
[1737965431267,0.04215538,98883.0,98868.0,0.3608]
[1737965432362,0.02543163,98883.0,98868.0,0.3608]
[1737965432563,0.02543163,98883.0,98871.0,0.202374]
[1737965432756,0.02543163,98883.0,98880.0,0.563154]
[1737965432963,0.02543163,98883.0,98881.0,0.202352]
[1737965433162,0.0903722,98894.0,98893.0,0.202329]
[1737965433363,0.0903722,98894.0,98893.0,0.563129]
[1737965433666,0.3496,98937.0,98898.0,0.202319]
[1737965433863,0.3496,98937.0,98911.0,0.202292]
[1737965433864,0.1807,98937.0,98911.0,0.202292]
[1737965434055,0.27202371,98938.0,98924.0,0.202266]
[1737965434463,0.00015164,98934.0,98924.0,0.202266]
[1737965434779,0.00015164,98934.0,98933.0,0.202247]
[1737965434970,0.3608,98964.0,98933.0,0.202247]
[1737965434971,0.21118933,98952.0,98934.0,0.202244]
[1737965435166,0.21118933,98952.0,98940.0,0.18750715]
[1737965435969,0.21118933,98952.0,98941.0,0.20223]
[1737965436272,0.3608,98947.0,98936.0,0.00015164]
[1737965436774,0.34226584,98938.0,98936.0,0.00015164]
[1737965436963,0.1816,98937.0,98936.0,0.00015164]
[1737965437162,0.1816,98937.0,98910.0,0.33011956]
[1737965437368,0.3608,98927.0,98906.0,0.202302]
[1737965437764,0.3608,98927.0,98905.0,0.3608]
[1737965438066,0.3608,98919.0,98905.0,0.3608]
[1737965438275,0.1748,98918.0,98905.0,0.3608]
[1737965438969,0.00015164,98922.0,98906.0,0.202302]
[1737965439165,0.00015164,98922.0,98905.0,0.3628]
[1737965439471,0.00015164,98922.0,98905.0,0.002]
[1737965439671,0.3608,98916.0,98905.0,0.002]
[1737965439861,0.3608,98916.0,98905.0,0.004]
[1737965440566,0.3608,98916.0,98905.0,0.001]
[1737965440867,0.00015164,98922.0,98910.0,0.202293]
[1737965441072,0.00015164,98922.0,98914.0,0.202286]
[1737965441468,0.001,98916.0,98914.0,0.202286]
[1737965442072,0.00015164,98922.0,98914.0,0.202286]
[1737965442279,0.002,98916.0,98914.0,0.202286]
[1737965442870,0.002,98916.0,98912.0,0.69147956]
[1737965443070,0.002,98916.0,98915.0,0.202284]
[1737965443575,0.00215164,98922.0,98921.0,0.202272]
[1737965443576,0.00015164,98922.0,98921.0,0.202272]
[1737965443765,0.00015164,98922.0,98921.0,0.563072]
[1737965443964,0.1757,98942.0,98933.0,0.202246]
[1737965444167,0.3608,98944.0,98936.0,0.20224]
[1737965444471,0.1758,98956.0,98935.0,0.3608]
[1737965444671,0.19294884,98956.0,98943.0,0.3608]
[1737965444868,0.1758,98956.0,98946.0,0.202221]
[1737965445072,0.00015164,98955.0,98946.0,0.202221]
[1737965446775,0.01587,98947.0,98946.0,0.202221]
[1737965447580,0.01587,98947.0,98946.0,0.21893283]
[1737965448368,0.01687,98947.0,98946.0,0.21893283]
[1737965450275,0.01587,98947.0,98946.0,0.21893283]
[1737965450672,0.01487,98947.0,98946.0,0.21893283]
[1737965450873,0.00015164,98955.0,98954.0,0.202204]
[1737965451070,0.001,98979.0,98951.0,0.3608]
[1737965451376,0.3702,98983.0,98960.0,0.050547]
[1737965451672,0.3608,99003.0,98960.0,0.050547]